{"text_format":"1","workbook":"xlsx","n_sheets":2,"sheets":["Замени СИК","Указания"],"not_rendered":{"charts":0,"images":0,"macros":1,"external_links":0,"defined_names":1,"comments":0,"pivot_tables":0},"unopened":[],"bounds":{"document_bytes":16777216,"sheet_cells":100000,"rows_first":2000,"rows_last":500,"rows_between":2000,"halvings":0,"cell_chars":16384,"cell_head_chars":4096},"cells_cut":0,"cells_raw":0,"read":"whole","date_system":"1900"}

{"sheet":"Замени СИК","index":0,"n_rows":992,"n_cols":10,"rows_kept":992,"cut":false,"hidden":false,"merged":[[0,0,0,2]]}
["По предложение на партия/коалиция:"]
["Район","Секция","Позиция","Име, презиме, фамилия на ЗАМЕСТВАН","ЕГН  на ЗАМЕСТВАН","Име, презиме, фамилия на ЗАМЕСТНИК","ЕГН  на ЗАМЕСТНИК","Адрес  на ЗАМЕСТНИК","Телефон на ЗАМЕСТНИК"]
[null,null,null,null,null,null,null,null,null,{"$f":"OR(egn_valid(G3),G3=\"\")","v":true}]
[null,null,null,null,null,null,null,null,null,{"$f":"OR(egn_valid(G4),G4=\"\")","v":true}]
[null,null,null,null,null,null,null,null,null,true]
[null,null,null,null,null,null,null,null,null,true]
[null,null,null,null,null,null,null,null,null,true]
[null,null,null,null,null,null,null,null,null,true]
[null,null,null,null,null,null,null,null,null,true]
[null,null,null,null,null,null,null,null,null,true]
[null,null,null,null,null,null,null,null,null,true]
[null,null,null,null,null,null,null,null,null,true]
[null,null,null,null,null,null,null,null,null,true]
[null,null,null,null,null,null,null,null,null,true]
[null,null,null,null,null,null,null,null,null,true]
[null,null,null,null,null,null,null,null,null,true]
[null,null,null,null,null,null,null,null,null,true]
[null,null,null,null,null,null,null,null,null,true]
[null,null,null,null,null,null,null,null,null,true]
[null,null,null,null,null,null,null,null,null,true]
[null,null,null,null,null,null,null,null,null,true]
[null,null,null,null,null,null,null,null,null,true]
[null,null,null,null,null,null,null,null,null,true]
[null,null,null,null,null,null,null,null,null,true]
[null,null,null,null,null,null,null,null,null,true]
[null,null,null,null,null,null,null,null,null,true]
[null,null,null,null,null,null,null,null,null,true]
[null,null,null,null,null,null,null,null,null,true]
[null,null,null,null,null,null,null,null,null,true]
[null,null,null,null,null,null,null,null,null,true]
[null,null,null,null,null,null,null,null,null,true]
[null,null,null,null,null,null,null,null,null,true]
[null,null,null,null,null,null,null,null,null,true]
[null,null,null,null,null,null,null,null,null,true]
[null,null,null,null,null,null,null,null,null,true]
[null,null,null,null,null,null,null,null,null,true]
[null,null,null,null,null,null,null,null,null,true]
[null,null,null,null,null,null,null,null,null,true]
[null,null,null,null,null,null,null,null,null,true]
[null,null,null,null,null,null,null,null,null,true]
[null,null,null,null,null,null,null,null,null,true]
[null,null,null,null,null,null,null,null,null,true]
[null,null,null,null,null,null,null,null,null,true]
[null,null,null,null,null,null,null,null,null,true]
[null,null,null,null,null,null,null,null,null,true]
[null,null,null,null,null,null,null,null,null,true]
[null,null,null,null,null,null,null,null,null,true]
[null,null,null,null,null,null,null,null,null,true]
[null,null,null,null,null,null,null,null,null,true]
[null,null,null,null,null,null,null,null,null,true]
[null,null,null,null,null,null,null,null,null,true]
[null,null,null,null,null,null,null,null,null,true]
[null,null,null,null,null,null,null,null,null,true]
[null,null,null,null,null,null,null,null,null,true]
[null,null,null,null,null,null,null,null,null,true]
[null,null,null,null,null,null,null,null,null,true]
[null,null,null,null,null,null,null,null,null,true]
[null,null,null,null,null,null,null,null,null,true]
[null,null,null,null,null,null,null,null,null,true]
[null,null,null,null,null,null,null,null,null,true]
[null,null,null,null,null,null,null,null,null,true]
[null,null,null,null,null,null,null,null,null,true]
[null,null,null,null,null,null,null,null,null,true]
[null,null,null,null,null,null,null,null,null,true]
[null,null,null,null,null,null,null,null,null,true]
[null,null,null,null,null,null,null,null,null,true]
[null,null,null,null,null,null,null,null,null,true]
[null,null,null,null,null,null,null,null,null,{"$f":"OR(egn_valid(G68),G68=\"\")","v":true}]
[null,null,null,null,null,null,null,null,null,true]
[null,null,null,null,null,null,null,null,null,true]
[null,null,null,null,null,null,null,null,null,true]
[null,null,null,null,null,null,null,null,null,true]
[null,null,null,null,null,null,null,null,null,true]
[null,null,null,null,null,null,null,null,null,true]
[null,null,null,null,null,null,null,null,null,true]
[null,null,null,null,null,null,null,null,null,true]
[null,null,null,null,null,null,null,null,null,true]
[null,null,null,null,null,null,null,null,null,true]
[null,null,null,null,null,null,null,null,null,true]
[null,null,null,null,null,null,null,null,null,true]
[null,null,null,null,null,null,null,null,null,true]
[null,null,null,null,null,null,null,null,null,true]
[null,null,null,null,null,null,null,null,null,true]
[null,null,null,null,null,null,null,null,null,true]
[null,null,null,null,null,null,null,null,null,true]
[null,null,null,null,null,null,null,null,null,true]
[null,null,null,null,null,null,null,null,null,true]
[null,null,null,null,null,null,null,null,null,true]
[null,null,null,null,null,null,null,null,null,true]
[null,null,null,null,null,null,null,null,null,true]
[null,null,null,null,null,null,null,null,null,true]
[null,null,null,null,null,null,null,null,null,true]
[null,null,null,null,null,null,null,null,null,true]
[null,null,null,null,null,null,null,null,null,true]
[null,null,null,null,null,null,null,null,null,true]
[null,null,null,null,null,null,null,null,null,true]
[null,null,null,null,null,null,null,null,null,true]
[null,null,null,null,null,null,null,null,null,true]
[null,null,null,null,null,null,null,null,null,true]
[null,null,null,null,null,null,null,null,null,true]
[null,null,null,null,null,null,null,null,null,true]
[null,null,null,null,null,null,null,null,null,true]
[null,null,null,null,null,null,null,null,null,true]
[null,null,null,null,null,null,null,null,null,true]
[null,null,null,null,null,null,null,null,null,true]
[null,null,null,null,null,null,null,null,null,true]
[null,null,null,null,null,null,null,null,null,true]
[null,null,null,null,null,null,null,null,null,true]
[null,null,null,null,null,null,null,null,null,true]
[null,null,null,null,null,null,null,null,null,true]
[null,null,null,null,null,null,null,null,null,true]
[null,null,null,null,null,null,null,null,null,true]
[null,null,null,null,null,null,null,null,null,true]
[null,null,null,null,null,null,null,null,null,true]
[null,null,null,null,null,null,null,null,null,true]
[null,null,null,null,null,null,null,null,null,true]
[null,null,null,null,null,null,null,null,null,true]
[null,null,null,null,null,null,null,null,null,true]
[null,null,null,null,null,null,null,null,null,true]
[null,null,null,null,null,null,null,null,null,true]
[null,null,null,null,null,null,null,null,null,true]
[null,null,null,null,null,null,null,null,null,true]
[null,null,null,null,null,null,null,null,null,true]
[null,null,null,null,null,null,null,null,null,true]
[null,null,null,null,null,null,null,null,null,true]
[null,null,null,null,null,null,null,null,null,true]
[null,null,null,null,null,null,null,null,null,true]
[null,null,null,null,null,null,null,null,null,true]
[null,null,null,null,null,null,null,null,null,true]
[null,null,null,null,null,null,null,null,null,true]
[null,null,null,null,null,null,null,null,null,true]
[null,null,null,null,null,null,null,null,null,{"$f":"OR(egn_valid(G132),G132=\"\")","v":true}]
[null,null,null,null,null,null,null,null,null,true]
[null,null,null,null,null,null,null,null,null,true]
[null,null,null,null,null,null,null,null,null,true]
[null,null,null,null,null,null,null,null,null,true]
[null,null,null,null,null,null,null,null,null,true]
[null,null,null,null,null,null,null,null,null,true]
[null,null,null,null,null,null,null,null,null,true]
[null,null,null,null,null,null,null,null,null,true]
[null,null,null,null,null,null,null,null,null,true]
[null,null,null,null,null,null,null,null,null,true]
[null,null,null,null,null,null,null,null,null,true]
[null,null,null,null,null,null,null,null,null,true]
[null,null,null,null,null,null,null,null,null,true]
[null,null,null,null,null,null,null,null,null,true]
[null,null,null,null,null,null,null,null,null,true]
[null,null,null,null,null,null,null,null,null,true]
[null,null,null,null,null,null,null,null,null,true]
[null,null,null,null,null,null,null,null,null,true]
[null,null,null,null,null,null,null,null,null,true]
[null,null,null,null,null,null,null,null,null,true]
[null,null,null,null,null,null,null,null,null,true]
[null,null,null,null,null,null,null,null,null,true]
[null,null,null,null,null,null,null,null,null,true]
[null,null,null,null,null,null,null,null,null,true]
[null,null,null,null,null,null,null,null,null,true]
[null,null,null,null,null,null,null,null,null,true]
[null,null,null,null,null,null,null,null,null,true]
[null,null,null,null,null,null,null,null,null,true]
[null,null,null,null,null,null,null,null,null,true]
[null,null,null,null,null,null,null,null,null,true]
[null,null,null,null,null,null,null,null,null,true]
[null,null,null,null,null,null,null,null,null,true]
[null,null,null,null,null,null,null,null,null,true]
[null,null,null,null,null,null,null,null,null,true]
[null,null,null,null,null,null,null,null,null,true]
[null,null,null,null,null,null,null,null,null,true]
[null,null,null,null,null,null,null,null,null,true]
[null,null,null,null,null,null,null,null,null,true]
[null,null,null,null,null,null,null,null,null,true]
[null,null,null,null,null,null,null,null,null,true]
[null,null,null,null,null,null,null,null,null,true]
[null,null,null,null,null,null,null,null,null,true]
[null,null,null,null,null,null,null,null,null,true]
[null,null,null,null,null,null,null,null,null,true]
[null,null,null,null,null,null,null,null,null,true]
[null,null,null,null,null,null,null,null,null,true]
[null,null,null,null,null,null,null,null,null,true]
[null,null,null,null,null,null,null,null,null,true]
[null,null,null,null,null,null,null,null,null,true]
[null,null,null,null,null,null,null,null,null,true]
[null,null,null,null,null,null,null,null,null,true]
[null,null,null,null,null,null,null,null,null,true]
[null,null,null,null,null,null,null,null,null,true]
[null,null,null,null,null,null,null,null,null,true]
[null,null,null,null,null,null,null,null,null,true]
[null,null,null,null,null,null,null,null,null,true]
[null,null,null,null,null,null,null,null,null,true]
[null,null,null,null,null,null,null,null,null,true]
[null,null,null,null,null,null,null,null,null,true]
[null,null,null,null,null,null,null,null,null,true]
[null,null,null,null,null,null,null,null,null,true]
[null,null,null,null,null,null,null,null,null,true]
[null,null,null,null,null,null,null,null,null,true]
[null,null,null,null,null,null,null,null,null,{"$f":"OR(egn_valid(G196),G196=\"\")","v":true}]
[null,null,null,null,null,null,null,null,null,true]
[null,null,null,null,null,null,null,null,null,true]
[null,null,null,null,null,null,null,null,null,true]
[null,null,null,null,null,null,null,null,null,true]
[null,null,null,null,null,null,null,null,null,true]
[null,null,null,null,null,null,null,null,null,true]
[null,null,null,null,null,null,null,null,null,true]
[null,null,null,null,null,null,null,null,null,true]
[null,null,null,null,null,null,null,null,null,true]
[null,null,null,null,null,null,null,null,null,true]
[null,null,null,null,null,null,null,null,null,true]
[null,null,null,null,null,null,null,null,null,true]
[null,null,null,null,null,null,null,null,null,true]
[null,null,null,null,null,null,null,null,null,true]
[null,null,null,null,null,null,null,null,null,true]
[null,null,null,null,null,null,null,null,null,true]
[null,null,null,null,null,null,null,null,null,true]
[null,null,null,null,null,null,null,null,null,true]
[null,null,null,null,null,null,null,null,null,true]
[null,null,null,null,null,null,null,null,null,true]
[null,null,null,null,null,null,null,null,null,true]
[null,null,null,null,null,null,null,null,null,true]
[null,null,null,null,null,null,null,null,null,true]
[null,null,null,null,null,null,null,null,null,true]
[null,null,null,null,null,null,null,null,null,true]
[null,null,null,null,null,null,null,null,null,true]
[null,null,null,null,null,null,null,null,null,true]
[null,null,null,null,null,null,null,null,null,true]
[null,null,null,null,null,null,null,null,null,true]
[null,null,null,null,null,null,null,null,null,true]
[null,null,null,null,null,null,null,null,null,true]
[null,null,null,null,null,null,null,null,null,true]
[null,null,null,null,null,null,null,null,null,true]
[null,null,null,null,null,null,null,null,null,true]
[null,null,null,null,null,null,null,null,null,true]
[null,null,null,null,null,null,null,null,null,true]
[null,null,null,null,null,null,null,null,null,true]
[null,null,null,null,null,null,null,null,null,true]
[null,null,null,null,null,null,null,null,null,true]
[null,null,null,null,null,null,null,null,null,true]
[null,null,null,null,null,null,null,null,null,true]
[null,null,null,null,null,null,null,null,null,true]
[null,null,null,null,null,null,null,null,null,true]
[null,null,null,null,null,null,null,null,null,true]
[null,null,null,null,null,null,null,null,null,true]
[null,null,null,null,null,null,null,null,null,true]
[null,null,null,null,null,null,null,null,null,true]
[null,null,null,null,null,null,null,null,null,true]
[null,null,null,null,null,null,null,null,null,true]
[null,null,null,null,null,null,null,null,null,true]
[null,null,null,null,null,null,null,null,null,true]
[null,null,null,null,null,null,null,null,null,true]
[null,null,null,null,null,null,null,null,null,true]
[null,null,null,null,null,null,null,null,null,true]
[null,null,null,null,null,null,null,null,null,true]
[null,null,null,null,null,null,null,null,null,true]
[null,null,null,null,null,null,null,null,null,true]
[null,null,null,null,null,null,null,null,null,true]
[null,null,null,null,null,null,null,null,null,true]
[null,null,null,null,null,null,null,null,null,true]
[null,null,null,null,null,null,null,null,null,true]
[null,null,null,null,null,null,null,null,null,true]
[null,null,null,null,null,null,null,null,null,true]
[null,null,null,null,null,null,null,null,null,{"$f":"OR(egn_valid(G260),G260=\"\")","v":true}]
[null,null,null,null,null,null,null,null,null,true]
[null,null,null,null,null,null,null,null,null,true]
[null,null,null,null,null,null,null,null,null,true]
[null,null,null,null,null,null,null,null,null,true]
[null,null,null,null,null,null,null,null,null,true]
[null,null,null,null,null,null,null,null,null,true]
[null,null,null,null,null,null,null,null,null,true]
[null,null,null,null,null,null,null,null,null,true]
[null,null,null,null,null,null,null,null,null,true]
[null,null,null,null,null,null,null,null,null,true]
[null,null,null,null,null,null,null,null,null,true]
[null,null,null,null,null,null,null,null,null,true]
[null,null,null,null,null,null,null,null,null,true]
[null,null,null,null,null,null,null,null,null,true]
[null,null,null,null,null,null,null,null,null,true]
[null,null,null,null,null,null,null,null,null,true]
[null,null,null,null,null,null,null,null,null,true]
[null,null,null,null,null,null,null,null,null,true]
[null,null,null,null,null,null,null,null,null,true]
[null,null,null,null,null,null,null,null,null,true]
[null,null,null,null,null,null,null,null,null,true]
[null,null,null,null,null,null,null,null,null,true]
[null,null,null,null,null,null,null,null,null,true]
[null,null,null,null,null,null,null,null,null,true]
[null,null,null,null,null,null,null,null,null,true]
[null,null,null,null,null,null,null,null,null,true]
[null,null,null,null,null,null,null,null,null,true]
[null,null,null,null,null,null,null,null,null,true]
[null,null,null,null,null,null,null,null,null,true]
[null,null,null,null,null,null,null,null,null,true]
[null,null,null,null,null,null,null,null,null,true]
[null,null,null,null,null,null,null,null,null,true]
[null,null,null,null,null,null,null,null,null,true]
[null,null,null,null,null,null,null,null,null,true]
[null,null,null,null,null,null,null,null,null,true]
[null,null,null,null,null,null,null,null,null,true]
[null,null,null,null,null,null,null,null,null,true]
[null,null,null,null,null,null,null,null,null,true]
[null,null,null,null,null,null,null,null,null,true]
[null,null,null,null,null,null,null,null,null,true]
[null,null,null,null,null,null,null,null,null,true]
[null,null,null,null,null,null,null,null,null,true]
[null,null,null,null,null,null,null,null,null,true]
[null,null,null,null,null,null,null,null,null,true]
[null,null,null,null,null,null,null,null,null,true]
[null,null,null,null,null,null,null,null,null,true]
[null,null,null,null,null,null,null,null,null,true]
[null,null,null,null,null,null,null,null,null,true]
[null,null,null,null,null,null,null,null,null,true]
[null,null,null,null,null,null,null,null,null,true]
[null,null,null,null,null,null,null,null,null,true]
[null,null,null,null,null,null,null,null,null,true]
[null,null,null,null,null,null,null,null,null,true]
[null,null,null,null,null,null,null,null,null,true]
[null,null,null,null,null,null,null,null,null,true]
[null,null,null,null,null,null,null,null,null,true]
[null,null,null,null,null,null,null,null,null,true]
[null,null,null,null,null,null,null,null,null,true]
[null,null,null,null,null,null,null,null,null,true]
[null,null,null,null,null,null,null,null,null,true]
[null,null,null,null,null,null,null,null,null,true]
[null,null,null,null,null,null,null,null,null,true]
[null,null,null,null,null,null,null,null,null,true]
[null,null,null,null,null,null,null,null,null,{"$f":"OR(egn_valid(G324),G324=\"\")","v":true}]
[null,null,null,null,null,null,null,null,null,true]
[null,null,null,null,null,null,null,null,null,true]
[null,null,null,null,null,null,null,null,null,true]
[null,null,null,null,null,null,null,null,null,true]
[null,null,null,null,null,null,null,null,null,true]
[null,null,null,null,null,null,null,null,null,true]
[null,null,null,null,null,null,null,null,null,true]
[null,null,null,null,null,null,null,null,null,true]
[null,null,null,null,null,null,null,null,null,true]
[null,null,null,null,null,null,null,null,null,true]
[null,null,null,null,null,null,null,null,null,true]
[null,null,null,null,null,null,null,null,null,true]
[null,null,null,null,null,null,null,null,null,true]
[null,null,null,null,null,null,null,null,null,true]
[null,null,null,null,null,null,null,null,null,true]
[null,null,null,null,null,null,null,null,null,true]
[null,null,null,null,null,null,null,null,null,true]
[null,null,null,null,null,null,null,null,null,true]
[null,null,null,null,null,null,null,null,null,true]
[null,null,null,null,null,null,null,null,null,true]
[null,null,null,null,null,null,null,null,null,true]
[null,null,null,null,null,null,null,null,null,true]
[null,null,null,null,null,null,null,null,null,true]
[null,null,null,null,null,null,null,null,null,true]
[null,null,null,null,null,null,null,null,null,true]
[null,null,null,null,null,null,null,null,null,true]
[null,null,null,null,null,null,null,null,null,true]
[null,null,null,null,null,null,null,null,null,true]
[null,null,null,null,null,null,null,null,null,true]
[null,null,null,null,null,null,null,null,null,true]
[null,null,null,null,null,null,null,null,null,true]
[null,null,null,null,null,null,null,null,null,true]
[null,null,null,null,null,null,null,null,null,true]
[null,null,null,null,null,null,null,null,null,true]
[null,null,null,null,null,null,null,null,null,true]
[null,null,null,null,null,null,null,null,null,true]
[null,null,null,null,null,null,null,null,null,true]
[null,null,null,null,null,null,null,null,null,true]
[null,null,null,null,null,null,null,null,null,true]
[null,null,null,null,null,null,null,null,null,true]
[null,null,null,null,null,null,null,null,null,true]
[null,null,null,null,null,null,null,null,null,true]
[null,null,null,null,null,null,null,null,null,true]
[null,null,null,null,null,null,null,null,null,true]
[null,null,null,null,null,null,null,null,null,true]
[null,null,null,null,null,null,null,null,null,true]
[null,null,null,null,null,null,null,null,null,true]
[null,null,null,null,null,null,null,null,null,true]
[null,null,null,null,null,null,null,null,null,true]
[null,null,null,null,null,null,null,null,null,true]
[null,null,null,null,null,null,null,null,null,true]
[null,null,null,null,null,null,null,null,null,true]
[null,null,null,null,null,null,null,null,null,true]
[null,null,null,null,null,null,null,null,null,true]
[null,null,null,null,null,null,null,null,null,true]
[null,null,null,null,null,null,null,null,null,true]
[null,null,null,null,null,null,null,null,null,true]
[null,null,null,null,null,null,null,null,null,true]
[null,null,null,null,null,null,null,null,null,true]
[null,null,null,null,null,null,null,null,null,true]
[null,null,null,null,null,null,null,null,null,true]
[null,null,null,null,null,null,null,null,null,true]
[null,null,null,null,null,null,null,null,null,true]
[null,null,null,null,null,null,null,null,null,{"$f":"OR(egn_valid(G388),G388=\"\")","v":true}]
[null,null,null,null,null,null,null,null,null,true]
[null,null,null,null,null,null,null,null,null,true]
[null,null,null,null,null,null,null,null,null,true]
[null,null,null,null,null,null,null,null,null,true]
[null,null,null,null,null,null,null,null,null,true]
[null,null,null,null,null,null,null,null,null,true]
[null,null,null,null,null,null,null,null,null,true]
[null,null,null,null,null,null,null,null,null,true]
[null,null,null,null,null,null,null,null,null,true]
[null,null,null,null,null,null,null,null,null,true]
[null,null,null,null,null,null,null,null,null,true]
[null,null,null,null,null,null,null,null,null,true]
[null,null,null,null,null,null,null,null,null,true]
[null,null,null,null,null,null,null,null,null,true]
[null,null,null,null,null,null,null,null,null,true]
[null,null,null,null,null,null,null,null,null,true]
[null,null,null,null,null,null,null,null,null,true]
[null,null,null,null,null,null,null,null,null,true]
[null,null,null,null,null,null,null,null,null,true]
[null,null,null,null,null,null,null,null,null,true]
[null,null,null,null,null,null,null,null,null,true]
[null,null,null,null,null,null,null,null,null,true]
[null,null,null,null,null,null,null,null,null,true]
[null,null,null,null,null,null,null,null,null,true]
[null,null,null,null,null,null,null,null,null,true]
[null,null,null,null,null,null,null,null,null,true]
[null,null,null,null,null,null,null,null,null,true]
[null,null,null,null,null,null,null,null,null,true]
[null,null,null,null,null,null,null,null,null,true]
[null,null,null,null,null,null,null,null,null,true]
[null,null,null,null,null,null,null,null,null,true]
[null,null,null,null,null,null,null,null,null,true]
[null,null,null,null,null,null,null,null,null,true]
[null,null,null,null,null,null,null,null,null,true]
[null,null,null,null,null,null,null,null,null,true]
[null,null,null,null,null,null,null,null,null,true]
[null,null,null,null,null,null,null,null,null,true]
[null,null,null,null,null,null,null,null,null,true]
[null,null,null,null,null,null,null,null,null,true]
[null,null,null,null,null,null,null,null,null,true]
[null,null,null,null,null,null,null,null,null,true]
[null,null,null,null,null,null,null,null,null,true]
[null,null,null,null,null,null,null,null,null,true]
[null,null,null,null,null,null,null,null,null,true]
[null,null,null,null,null,null,null,null,null,true]
[null,null,null,null,null,null,null,null,null,true]
[null,null,null,null,null,null,null,null,null,true]
[null,null,null,null,null,null,null,null,null,true]
[null,null,null,null,null,null,null,null,null,true]
[null,null,null,null,null,null,null,null,null,true]
[null,null,null,null,null,null,null,null,null,true]
[null,null,null,null,null,null,null,null,null,true]
[null,null,null,null,null,null,null,null,null,true]
[null,null,null,null,null,null,null,null,null,true]
[null,null,null,null,null,null,null,null,null,true]
[null,null,null,null,null,null,null,null,null,true]
[null,null,null,null,null,null,null,null,null,true]
[null,null,null,null,null,null,null,null,null,true]
[null,null,null,null,null,null,null,null,null,true]
[null,null,null,null,null,null,null,null,null,true]
[null,null,null,null,null,null,null,null,null,true]
[null,null,null,null,null,null,null,null,null,true]
[null,null,null,null,null,null,null,null,null,true]
[null,null,null,null,null,null,null,null,null,{"$f":"OR(egn_valid(G452),G452=\"\")","v":true}]
[null,null,null,null,null,null,null,null,null,true]
[null,null,null,null,null,null,null,null,null,true]
[null,null,null,null,null,null,null,null,null,true]
[null,null,null,null,null,null,null,null,null,true]
[null,null,null,null,null,null,null,null,null,true]
[null,null,null,null,null,null,null,null,null,true]
[null,null,null,null,null,null,null,null,null,true]
[null,null,null,null,null,null,null,null,null,true]
[null,null,null,null,null,null,null,null,null,true]
[null,null,null,null,null,null,null,null,null,true]
[null,null,null,null,null,null,null,null,null,true]
[null,null,null,null,null,null,null,null,null,true]
[null,null,null,null,null,null,null,null,null,true]
[null,null,null,null,null,null,null,null,null,true]
[null,null,null,null,null,null,null,null,null,true]
[null,null,null,null,null,null,null,null,null,true]
[null,null,null,null,null,null,null,null,null,true]
[null,null,null,null,null,null,null,null,null,true]
[null,null,null,null,null,null,null,null,null,true]
[null,null,null,null,null,null,null,null,null,true]
[null,null,null,null,null,null,null,null,null,true]
[null,null,null,null,null,null,null,null,null,true]
[null,null,null,null,null,null,null,null,null,true]
[null,null,null,null,null,null,null,null,null,true]
[null,null,null,null,null,null,null,null,null,true]
[null,null,null,null,null,null,null,null,null,true]
[null,null,null,null,null,null,null,null,null,true]
[null,null,null,null,null,null,null,null,null,true]
[null,null,null,null,null,null,null,null,null,true]
[null,null,null,null,null,null,null,null,null,true]
[null,null,null,null,null,null,null,null,null,true]
[null,null,null,null,null,null,null,null,null,true]
[null,null,null,null,null,null,null,null,null,true]
[null,null,null,null,null,null,null,null,null,true]
[null,null,null,null,null,null,null,null,null,true]
[null,null,null,null,null,null,null,null,null,true]
[null,null,null,null,null,null,null,null,null,true]
[null,null,null,null,null,null,null,null,null,true]
[null,null,null,null,null,null,null,null,null,true]
[null,null,null,null,null,null,null,null,null,true]
[null,null,null,null,null,null,null,null,null,true]
[null,null,null,null,null,null,null,null,null,true]
[null,null,null,null,null,null,null,null,null,true]
[null,null,null,null,null,null,null,null,null,true]
[null,null,null,null,null,null,null,null,null,true]
[null,null,null,null,null,null,null,null,null,true]
[null,null,null,null,null,null,null,null,null,true]
[null,null,null,null,null,null,null,null,null,true]
[null,null,null,null,null,null,null,null,null,true]
[null,null,null,null,null,null,null,null,null,true]
[null,null,null,null,null,null,null,null,null,true]
[null,null,null,null,null,null,null,null,null,true]
[null,null,null,null,null,null,null,null,null,true]
[null,null,null,null,null,null,null,null,null,true]
[null,null,null,null,null,null,null,null,null,true]
[null,null,null,null,null,null,null,null,null,true]
[null,null,null,null,null,null,null,null,null,true]
[null,null,null,null,null,null,null,null,null,true]
[null,null,null,null,null,null,null,null,null,true]
[null,null,null,null,null,null,null,null,null,true]
[null,null,null,null,null,null,null,null,null,true]
[null,null,null,null,null,null,null,null,null,true]
[null,null,null,null,null,null,null,null,null,true]
[null,null,null,null,null,null,null,null,null,{"$f":"OR(egn_valid(G516),G516=\"\")","v":true}]
[null,null,null,null,null,null,null,null,null,true]
[null,null,null,null,null,null,null,null,null,true]
[null,null,null,null,null,null,null,null,null,true]
[null,null,null,null,null,null,null,null,null,true]
[null,null,null,null,null,null,null,null,null,true]
[null,null,null,null,null,null,null,null,null,true]
[null,null,null,null,null,null,null,null,null,true]
[null,null,null,null,null,null,null,null,null,true]
[null,null,null,null,null,null,null,null,null,true]
[null,null,null,null,null,null,null,null,null,true]
[null,null,null,null,null,null,null,null,null,true]
[null,null,null,null,null,null,null,null,null,true]
[null,null,null,null,null,null,null,null,null,true]
[null,null,null,null,null,null,null,null,null,true]
[null,null,null,null,null,null,null,null,null,true]
[null,null,null,null,null,null,null,null,null,true]
[null,null,null,null,null,null,null,null,null,true]
[null,null,null,null,null,null,null,null,null,true]
[null,null,null,null,null,null,null,null,null,true]
[null,null,null,null,null,null,null,null,null,true]
[null,null,null,null,null,null,null,null,null,true]
[null,null,null,null,null,null,null,null,null,true]
[null,null,null,null,null,null,null,null,null,true]
[null,null,null,null,null,null,null,null,null,true]
[null,null,null,null,null,null,null,null,null,true]
[null,null,null,null,null,null,null,null,null,true]
[null,null,null,null,null,null,null,null,null,true]
[null,null,null,null,null,null,null,null,null,true]
[null,null,null,null,null,null,null,null,null,true]
[null,null,null,null,null,null,null,null,null,true]
[null,null,null,null,null,null,null,null,null,true]
[null,null,null,null,null,null,null,null,null,true]
[null,null,null,null,null,null,null,null,null,true]
[null,null,null,null,null,null,null,null,null,true]
[null,null,null,null,null,null,null,null,null,true]
[null,null,null,null,null,null,null,null,null,true]
[null,null,null,null,null,null,null,null,null,true]
[null,null,null,null,null,null,null,null,null,true]
[null,null,null,null,null,null,null,null,null,true]
[null,null,null,null,null,null,null,null,null,true]
[null,null,null,null,null,null,null,null,null,true]
[null,null,null,null,null,null,null,null,null,true]
[null,null,null,null,null,null,null,null,null,true]
[null,null,null,null,null,null,null,null,null,true]
[null,null,null,null,null,null,null,null,null,true]
[null,null,null,null,null,null,null,null,null,true]
[null,null,null,null,null,null,null,null,null,true]
[null,null,null,null,null,null,null,null,null,true]
[null,null,null,null,null,null,null,null,null,true]
[null,null,null,null,null,null,null,null,null,true]
[null,null,null,null,null,null,null,null,null,true]
[null,null,null,null,null,null,null,null,null,true]
[null,null,null,null,null,null,null,null,null,true]
[null,null,null,null,null,null,null,null,null,true]
[null,null,null,null,null,null,null,null,null,true]
[null,null,null,null,null,null,null,null,null,true]
[null,null,null,null,null,null,null,null,null,true]
[null,null,null,null,null,null,null,null,null,true]
[null,null,null,null,null,null,null,null,null,true]
[null,null,null,null,null,null,null,null,null,true]
[null,null,null,null,null,null,null,null,null,true]
[null,null,null,null,null,null,null,null,null,true]
[null,null,null,null,null,null,null,null,null,true]
[null,null,null,null,null,null,null,null,null,{"$f":"OR(egn_valid(G580),G580=\"\")","v":true}]
[null,null,null,null,null,null,null,null,null,true]
[null,null,null,null,null,null,null,null,null,true]
[null,null,null,null,null,null,null,null,null,true]
[null,null,null,null,null,null,null,null,null,true]
[null,null,null,null,null,null,null,null,null,true]
[null,null,null,null,null,null,null,null,null,true]
[null,null,null,null,null,null,null,null,null,true]
[null,null,null,null,null,null,null,null,null,true]
[null,null,null,null,null,null,null,null,null,true]
[null,null,null,null,null,null,null,null,null,true]
[null,null,null,null,null,null,null,null,null,true]
[null,null,null,null,null,null,null,null,null,true]
[null,null,null,null,null,null,null,null,null,true]
[null,null,null,null,null,null,null,null,null,true]
[null,null,null,null,null,null,null,null,null,true]
[null,null,null,null,null,null,null,null,null,true]
[null,null,null,null,null,null,null,null,null,true]
[null,null,null,null,null,null,null,null,null,true]
[null,null,null,null,null,null,null,null,null,true]
[null,null,null,null,null,null,null,null,null,true]
[null,null,null,null,null,null,null,null,null,true]
[null,null,null,null,null,null,null,null,null,true]
[null,null,null,null,null,null,null,null,null,true]
[null,null,null,null,null,null,null,null,null,true]
[null,null,null,null,null,null,null,null,null,true]
[null,null,null,null,null,null,null,null,null,true]
[null,null,null,null,null,null,null,null,null,true]
[null,null,null,null,null,null,null,null,null,true]
[null,null,null,null,null,null,null,null,null,true]
[null,null,null,null,null,null,null,null,null,true]
[null,null,null,null,null,null,null,null,null,true]
[null,null,null,null,null,null,null,null,null,true]
[null,null,null,null,null,null,null,null,null,true]
[null,null,null,null,null,null,null,null,null,true]
[null,null,null,null,null,null,null,null,null,true]
[null,null,null,null,null,null,null,null,null,true]
[null,null,null,null,null,null,null,null,null,true]
[null,null,null,null,null,null,null,null,null,true]
[null,null,null,null,null,null,null,null,null,true]
[null,null,null,null,null,null,null,null,null,true]
[null,null,null,null,null,null,null,null,null,true]
[null,null,null,null,null,null,null,null,null,true]
[null,null,null,null,null,null,null,null,null,true]
[null,null,null,null,null,null,null,null,null,true]
[null,null,null,null,null,null,null,null,null,true]
[null,null,null,null,null,null,null,null,null,true]
[null,null,null,null,null,null,null,null,null,true]
[null,null,null,null,null,null,null,null,null,true]
[null,null,null,null,null,null,null,null,null,true]
[null,null,null,null,null,null,null,null,null,true]
[null,null,null,null,null,null,null,null,null,true]
[null,null,null,null,null,null,null,null,null,true]
[null,null,null,null,null,null,null,null,null,true]
[null,null,null,null,null,null,null,null,null,true]
[null,null,null,null,null,null,null,null,null,true]
[null,null,null,null,null,null,null,null,null,true]
[null,null,null,null,null,null,null,null,null,true]
[null,null,null,null,null,null,null,null,null,true]
[null,null,null,null,null,null,null,null,null,true]
[null,null,null,null,null,null,null,null,null,true]
[null,null,null,null,null,null,null,null,null,true]
[null,null,null,null,null,null,null,null,null,true]
[null,null,null,null,null,null,null,null,null,true]
[null,null,null,null,null,null,null,null,null,{"$f":"OR(egn_valid(G644),G644=\"\")","v":true}]
[null,null,null,null,null,null,null,null,null,true]
[null,null,null,null,null,null,null,null,null,true]
[null,null,null,null,null,null,null,null,null,true]
[null,null,null,null,null,null,null,null,null,true]
[null,null,null,null,null,null,null,null,null,true]
[null,null,null,null,null,null,null,null,null,true]
[null,null,null,null,null,null,null,null,null,true]
[null,null,null,null,null,null,null,null,null,true]
[null,null,null,null,null,null,null,null,null,true]
[null,null,null,null,null,null,null,null,null,true]
[null,null,null,null,null,null,null,null,null,true]
[null,null,null,null,null,null,null,null,null,true]
[null,null,null,null,null,null,null,null,null,true]
[null,null,null,null,null,null,null,null,null,true]
[null,null,null,null,null,null,null,null,null,true]
[null,null,null,null,null,null,null,null,null,true]
[null,null,null,null,null,null,null,null,null,true]
[null,null,null,null,null,null,null,null,null,true]
[null,null,null,null,null,null,null,null,null,true]
[null,null,null,null,null,null,null,null,null,true]
[null,null,null,null,null,null,null,null,null,true]
[null,null,null,null,null,null,null,null,null,true]
[null,null,null,null,null,null,null,null,null,true]
[null,null,null,null,null,null,null,null,null,true]
[null,null,null,null,null,null,null,null,null,true]
[null,null,null,null,null,null,null,null,null,true]
[null,null,null,null,null,null,null,null,null,true]
[null,null,null,null,null,null,null,null,null,true]
[null,null,null,null,null,null,null,null,null,true]
[null,null,null,null,null,null,null,null,null,true]
[null,null,null,null,null,null,null,null,null,true]
[null,null,null,null,null,null,null,null,null,true]
[null,null,null,null,null,null,null,null,null,true]
[null,null,null,null,null,null,null,null,null,true]
[null,null,null,null,null,null,null,null,null,true]
[null,null,null,null,null,null,null,null,null,true]
[null,null,null,null,null,null,null,null,null,true]
[null,null,null,null,null,null,null,null,null,true]
[null,null,null,null,null,null,null,null,null,true]
[null,null,null,null,null,null,null,null,null,true]
[null,null,null,null,null,null,null,null,null,true]
[null,null,null,null,null,null,null,null,null,true]
[null,null,null,null,null,null,null,null,null,true]
[null,null,null,null,null,null,null,null,null,true]
[null,null,null,null,null,null,null,null,null,true]
[null,null,null,null,null,null,null,null,null,true]
[null,null,null,null,null,null,null,null,null,true]
[null,null,null,null,null,null,null,null,null,true]
[null,null,null,null,null,null,null,null,null,true]
[null,null,null,null,null,null,null,null,null,true]
[null,null,null,null,null,null,null,null,null,true]
[null,null,null,null,null,null,null,null,null,true]
[null,null,null,null,null,null,null,null,null,true]
[null,null,null,null,null,null,null,null,null,true]
[null,null,null,null,null,null,null,null,null,true]
[null,null,null,null,null,null,null,null,null,true]
[null,null,null,null,null,null,null,null,null,true]
[null,null,null,null,null,null,null,null,null,true]
[null,null,null,null,null,null,null,null,null,true]
[null,null,null,null,null,null,null,null,null,true]
[null,null,null,null,null,null,null,null,null,true]
[null,null,null,null,null,null,null,null,null,true]
[null,null,null,null,null,null,null,null,null,true]
[null,null,null,null,null,null,null,null,null,{"$f":"OR(egn_valid(G708),G708=\"\")","v":true}]
[null,null,null,null,null,null,null,null,null,true]
[null,null,null,null,null,null,null,null,null,true]
[null,null,null,null,null,null,null,null,null,true]
[null,null,null,null,null,null,null,null,null,true]
[null,null,null,null,null,null,null,null,null,true]
[null,null,null,null,null,null,null,null,null,true]
[null,null,null,null,null,null,null,null,null,true]
[null,null,null,null,null,null,null,null,null,true]
[null,null,null,null,null,null,null,null,null,true]
[null,null,null,null,null,null,null,null,null,true]
[null,null,null,null,null,null,null,null,null,true]
[null,null,null,null,null,null,null,null,null,true]
[null,null,null,null,null,null,null,null,null,true]
[null,null,null,null,null,null,null,null,null,true]
[null,null,null,null,null,null,null,null,null,true]
[null,null,null,null,null,null,null,null,null,true]
[null,null,null,null,null,null,null,null,null,true]
[null,null,null,null,null,null,null,null,null,true]
[null,null,null,null,null,null,null,null,null,true]
[null,null,null,null,null,null,null,null,null,true]
[null,null,null,null,null,null,null,null,null,true]
[null,null,null,null,null,null,null,null,null,true]
[null,null,null,null,null,null,null,null,null,true]
[null,null,null,null,null,null,null,null,null,true]
[null,null,null,null,null,null,null,null,null,true]
[null,null,null,null,null,null,null,null,null,true]
[null,null,null,null,null,null,null,null,null,true]
[null,null,null,null,null,null,null,null,null,true]
[null,null,null,null,null,null,null,null,null,true]
[null,null,null,null,null,null,null,null,null,true]
[null,null,null,null,null,null,null,null,null,true]
[null,null,null,null,null,null,null,null,null,true]
[null,null,null,null,null,null,null,null,null,true]
[null,null,null,null,null,null,null,null,null,true]
[null,null,null,null,null,null,null,null,null,true]
[null,null,null,null,null,null,null,null,null,true]
[null,null,null,null,null,null,null,null,null,true]
[null,null,null,null,null,null,null,null,null,true]
[null,null,null,null,null,null,null,null,null,true]
[null,null,null,null,null,null,null,null,null,true]
[null,null,null,null,null,null,null,null,null,true]
[null,null,null,null,null,null,null,null,null,true]
[null,null,null,null,null,null,null,null,null,true]
[null,null,null,null,null,null,null,null,null,true]
[null,null,null,null,null,null,null,null,null,true]
[null,null,null,null,null,null,null,null,null,true]
[null,null,null,null,null,null,null,null,null,true]
[null,null,null,null,null,null,null,null,null,true]
[null,null,null,null,null,null,null,null,null,true]
[null,null,null,null,null,null,null,null,null,true]
[null,null,null,null,null,null,null,null,null,true]
[null,null,null,null,null,null,null,null,null,true]
[null,null,null,null,null,null,null,null,null,true]
[null,null,null,null,null,null,null,null,null,true]
[null,null,null,null,null,null,null,null,null,true]
[null,null,null,null,null,null,null,null,null,true]
[null,null,null,null,null,null,null,null,null,true]
[null,null,null,null,null,null,null,null,null,true]
[null,null,null,null,null,null,null,null,null,true]
[null,null,null,null,null,null,null,null,null,true]
[null,null,null,null,null,null,null,null,null,true]
[null,null,null,null,null,null,null,null,null,true]
[null,null,null,null,null,null,null,null,null,true]
[null,null,null,null,null,null,null,null,null,{"$f":"OR(egn_valid(G772),G772=\"\")","v":true}]
[null,null,null,null,null,null,null,null,null,true]
[null,null,null,null,null,null,null,null,null,true]
[null,null,null,null,null,null,null,null,null,true]
[null,null,null,null,null,null,null,null,null,true]
[null,null,null,null,null,null,null,null,null,true]
[null,null,null,null,null,null,null,null,null,true]
[null,null,null,null,null,null,null,null,null,true]
[null,null,null,null,null,null,null,null,null,true]
[null,null,null,null,null,null,null,null,null,true]
[null,null,null,null,null,null,null,null,null,true]
[null,null,null,null,null,null,null,null,null,true]
[null,null,null,null,null,null,null,null,null,true]
[null,null,null,null,null,null,null,null,null,true]
[null,null,null,null,null,null,null,null,null,true]
[null,null,null,null,null,null,null,null,null,true]
[null,null,null,null,null,null,null,null,null,true]
[null,null,null,null,null,null,null,null,null,true]
[null,null,null,null,null,null,null,null,null,true]
[null,null,null,null,null,null,null,null,null,true]
[null,null,null,null,null,null,null,null,null,true]
[null,null,null,null,null,null,null,null,null,true]
[null,null,null,null,null,null,null,null,null,true]
[null,null,null,null,null,null,null,null,null,true]
[null,null,null,null,null,null,null,null,null,true]
[null,null,null,null,null,null,null,null,null,true]
[null,null,null,null,null,null,null,null,null,true]
[null,null,null,null,null,null,null,null,null,true]
[null,null,null,null,null,null,null,null,null,true]
[null,null,null,null,null,null,null,null,null,true]
[null,null,null,null,null,null,null,null,null,true]
[null,null,null,null,null,null,null,null,null,true]
[null,null,null,null,null,null,null,null,null,true]
[null,null,null,null,null,null,null,null,null,true]
[null,null,null,null,null,null,null,null,null,true]
[null,null,null,null,null,null,null,null,null,true]
[null,null,null,null,null,null,null,null,null,true]
[null,null,null,null,null,null,null,null,null,true]
[null,null,null,null,null,null,null,null,null,true]
[null,null,null,null,null,null,null,null,null,true]
[null,null,null,null,null,null,null,null,null,true]
[null,null,null,null,null,null,null,null,null,true]
[null,null,null,null,null,null,null,null,null,true]
[null,null,null,null,null,null,null,null,null,true]
[null,null,null,null,null,null,null,null,null,true]
[null,null,null,null,null,null,null,null,null,true]
[null,null,null,null,null,null,null,null,null,true]
[null,null,null,null,null,null,null,null,null,true]
[null,null,null,null,null,null,null,null,null,true]
[null,null,null,null,null,null,null,null,null,true]
[null,null,null,null,null,null,null,null,null,true]
[null,null,null,null,null,null,null,null,null,true]
[null,null,null,null,null,null,null,null,null,true]
[null,null,null,null,null,null,null,null,null,true]
[null,null,null,null,null,null,null,null,null,true]
[null,null,null,null,null,null,null,null,null,true]
[null,null,null,null,null,null,null,null,null,true]
[null,null,null,null,null,null,null,null,null,true]
[null,null,null,null,null,null,null,null,null,true]
[null,null,null,null,null,null,null,null,null,true]
[null,null,null,null,null,null,null,null,null,true]
[null,null,null,null,null,null,null,null,null,true]
[null,null,null,null,null,null,null,null,null,true]
[null,null,null,null,null,null,null,null,null,true]
[null,null,null,null,null,null,null,null,null,{"$f":"OR(egn_valid(G836),G836=\"\")","v":true}]
[null,null,null,null,null,null,null,null,null,true]
[null,null,null,null,null,null,null,null,null,true]
[null,null,null,null,null,null,null,null,null,true]
[null,null,null,null,null,null,null,null,null,true]
[null,null,null,null,null,null,null,null,null,true]
[null,null,null,null,null,null,null,null,null,true]
[null,null,null,null,null,null,null,null,null,true]
[null,null,null,null,null,null,null,null,null,true]
[null,null,null,null,null,null,null,null,null,true]
[null,null,null,null,null,null,null,null,null,true]
[null,null,null,null,null,null,null,null,null,true]
[null,null,null,null,null,null,null,null,null,true]
[null,null,null,null,null,null,null,null,null,true]
[null,null,null,null,null,null,null,null,null,true]
[null,null,null,null,null,null,null,null,null,true]
[null,null,null,null,null,null,null,null,null,true]
[null,null,null,null,null,null,null,null,null,true]
[null,null,null,null,null,null,null,null,null,true]
[null,null,null,null,null,null,null,null,null,true]
[null,null,null,null,null,null,null,null,null,true]
[null,null,null,null,null,null,null,null,null,true]
[null,null,null,null,null,null,null,null,null,true]
[null,null,null,null,null,null,null,null,null,true]
[null,null,null,null,null,null,null,null,null,true]
[null,null,null,null,null,null,null,null,null,true]
[null,null,null,null,null,null,null,null,null,true]
[null,null,null,null,null,null,null,null,null,true]
[null,null,null,null,null,null,null,null,null,true]
[null,null,null,null,null,null,null,null,null,true]
[null,null,null,null,null,null,null,null,null,true]
[null,null,null,null,null,null,null,null,null,true]
[null,null,null,null,null,null,null,null,null,true]
[null,null,null,null,null,null,null,null,null,true]
[null,null,null,null,null,null,null,null,null,true]
[null,null,null,null,null,null,null,null,null,true]
[null,null,null,null,null,null,null,null,null,true]
[null,null,null,null,null,null,null,null,null,true]
[null,null,null,null,null,null,null,null,null,true]
[null,null,null,null,null,null,null,null,null,true]
[null,null,null,null,null,null,null,null,null,true]
[null,null,null,null,null,null,null,null,null,true]
[null,null,null,null,null,null,null,null,null,true]
[null,null,null,null,null,null,null,null,null,true]
[null,null,null,null,null,null,null,null,null,true]
[null,null,null,null,null,null,null,null,null,true]
[null,null,null,null,null,null,null,null,null,true]
[null,null,null,null,null,null,null,null,null,true]
[null,null,null,null,null,null,null,null,null,true]
[null,null,null,null,null,null,null,null,null,true]
[null,null,null,null,null,null,null,null,null,true]
[null,null,null,null,null,null,null,null,null,true]
[null,null,null,null,null,null,null,null,null,true]
[null,null,null,null,null,null,null,null,null,true]
[null,null,null,null,null,null,null,null,null,true]
[null,null,null,null,null,null,null,null,null,true]
[null,null,null,null,null,null,null,null,null,true]
[null,null,null,null,null,null,null,null,null,true]
[null,null,null,null,null,null,null,null,null,true]
[null,null,null,null,null,null,null,null,null,true]
[null,null,null,null,null,null,null,null,null,true]
[null,null,null,null,null,null,null,null,null,true]
[null,null,null,null,null,null,null,null,null,true]
[null,null,null,null,null,null,null,null,null,true]
[null,null,null,null,null,null,null,null,null,{"$f":"OR(egn_valid(G900),G900=\"\")","v":true}]
[null,null,null,null,null,null,null,null,null,true]
[null,null,null,null,null,null,null,null,null,true]
[null,null,null,null,null,null,null,null,null,true]
[null,null,null,null,null,null,null,null,null,true]
[null,null,null,null,null,null,null,null,null,true]
[null,null,null,null,null,null,null,null,null,true]
[null,null,null,null,null,null,null,null,null,true]
[null,null,null,null,null,null,null,null,null,true]
[null,null,null,null,null,null,null,null,null,true]
[null,null,null,null,null,null,null,null,null,true]
[null,null,null,null,null,null,null,null,null,true]
[null,null,null,null,null,null,null,null,null,true]
[null,null,null,null,null,null,null,null,null,true]
[null,null,null,null,null,null,null,null,null,true]
[null,null,null,null,null,null,null,null,null,true]
[null,null,null,null,null,null,null,null,null,true]
[null,null,null,null,null,null,null,null,null,true]
[null,null,null,null,null,null,null,null,null,true]
[null,null,null,null,null,null,null,null,null,true]
[null,null,null,null,null,null,null,null,null,true]
[null,null,null,null,null,null,null,null,null,true]
[null,null,null,null,null,null,null,null,null,true]
[null,null,null,null,null,null,null,null,null,true]
[null,null,null,null,null,null,null,null,null,true]
[null,null,null,null,null,null,null,null,null,true]
[null,null,null,null,null,null,null,null,null,true]
[null,null,null,null,null,null,null,null,null,true]
[null,null,null,null,null,null,null,null,null,true]
[null,null,null,null,null,null,null,null,null,true]
[null,null,null,null,null,null,null,null,null,true]
[null,null,null,null,null,null,null,null,null,true]
[null,null,null,null,null,null,null,null,null,true]
[null,null,null,null,null,null,null,null,null,true]
[null,null,null,null,null,null,null,null,null,true]
[null,null,null,null,null,null,null,null,null,true]
[null,null,null,null,null,null,null,null,null,true]
[null,null,null,null,null,null,null,null,null,true]
[null,null,null,null,null,null,null,null,null,true]
[null,null,null,null,null,null,null,null,null,true]
[null,null,null,null,null,null,null,null,null,true]
[null,null,null,null,null,null,null,null,null,true]
[null,null,null,null,null,null,null,null,null,true]
[null,null,null,null,null,null,null,null,null,true]
[null,null,null,null,null,null,null,null,null,true]
[null,null,null,null,null,null,null,null,null,true]
[null,null,null,null,null,null,null,null,null,true]
[null,null,null,null,null,null,null,null,null,true]
[null,null,null,null,null,null,null,null,null,true]
[null,null,null,null,null,null,null,null,null,true]
[null,null,null,null,null,null,null,null,null,true]
[null,null,null,null,null,null,null,null,null,true]
[null,null,null,null,null,null,null,null,null,true]
[null,null,null,null,null,null,null,null,null,true]
[null,null,null,null,null,null,null,null,null,true]
[null,null,null,null,null,null,null,null,null,true]
[null,null,null,null,null,null,null,null,null,true]
[null,null,null,null,null,null,null,null,null,true]
[null,null,null,null,null,null,null,null,null,true]
[null,null,null,null,null,null,null,null,null,true]
[null,null,null,null,null,null,null,null,null,true]
[null,null,null,null,null,null,null,null,null,true]
[null,null,null,null,null,null,null,null,null,true]
[null,null,null,null,null,null,null,null,null,true]
[null,null,null,null,null,null,null,null,null,{"$f":"OR(egn_valid(G964),G964=\"\")","v":true}]
[null,null,null,null,null,null,null,null,null,true]
[null,null,null,null,null,null,null,null,null,true]
[null,null,null,null,null,null,null,null,null,true]
[null,null,null,null,null,null,null,null,null,true]
[null,null,null,null,null,null,null,null,null,true]
[null,null,null,null,null,null,null,null,null,true]
[null,null,null,null,null,null,null,null,null,true]
[null,null,null,null,null,null,null,null,null,true]
[null,null,null,null,null,null,null,null,null,true]
[null,null,null,null,null,null,null,null,null,true]
[null,null,null,null,null,null,null,null,null,true]
[null,null,null,null,null,null,null,null,null,true]
[null,null,null,null,null,null,null,null,null,true]
[null,null,null,null,null,null,null,null,null,true]
[null,null,null,null,null,null,null,null,null,true]
[null,null,null,null,null,null,null,null,null,true]
[null,null,null,null,null,null,null,null,null,true]
[null,null,null,null,null,null,null,null,null,true]
[null,null,null,null,null,null,null,null,null,true]
[null,null,null,null,null,null,null,null,null,true]
[null,null,null,null,null,null,null,null,null,true]
[null,null,null,null,null,null,null,null,null,true]
[null,null,null,null,null,null,null,null,null,true]
[null,null,null,null,null,null,null,null,null,true]
[null,null,null,null,null,null,null,null,null,true]
[null,null,null,null,null,null,null,null,null,true]
[null,null,null,null,null,null,null,null,null,true]
[null,null,null,null,null,null,null,null,null,true]

{"sheet":"Указания","index":1,"n_rows":35,"n_cols":2,"rows_kept":35,"cut":false,"hidden":false,"merged":[]}
[]
[]
[]
[]
[]
[]
[]
[]
[]
[]
[]
[]
[]
[]
[]
[]
[]
[]
[]
[]
[]
[]
[]
[]
[]
[]
["Политически партии и коалиции с квоти в СИК"]
["QuotaName","QuotaShortName"]
["КП „ГЕРБ-СДС“","ГЕРБ"]
["КП „Продължаваме промяната“","ПП"]
["ПП ДПС","ДПС"]
["ПП „Възраждане“","ВЪЗР"]
["КП „БСП за България“","БСП"]
["КП „Демократична България”","ДБ"]
["КП „Български възход“","БВ"]